[Event "AUT-ch U16-Open 2025"]
[Site "Fuerstenfeld"]
[Date "2025.04.16"]
[Round "6.1"]
[White "Benedikt, Noah"]
[Black "Ortner, Sebastian"]
[Result "1-0"]
[Annotator "NA RC"]
[ECO "D05"]
[WhiteElo "1976"]
[BlackElo "1925"]
[PlyCount "93"]
[EventDate "2025.04.12"]
[EventType "swiss"]
[EventCountry "AUT"]
[SourceTitle "playchess.com"]
[Source "ChessBase"]
[SourceQuality "1"]
[TimeControl "5400+30"]

1. d4 {[%emt 0:00:01]} d5 {[%emt 0:00:04]} 2. Nf3 {[%emt 0:00:05]} Nf6 {[%emt 0:00:11]} 3. e3 {[%emt 0:00:07]} e6 {[%emt 0:00:50]} 4. Bd3 {[%emt 0:00:38]} c5 {[%emt 0:02:46]} 5. b3 {[%emt 0:00:09]} Bd6 {[%emt 0:00:54]} 6. O-O {[%emt 0:00:11]} O-O {[%emt 0:00:15]} 7. Nbd2 {[%emt 0:00:25]} Nc6 {[%emt 0:02:21]} 8. Bb2 {[%emt 0:00:14]} b6 {[%emt 0:06:40]} 9. Ne5 {[%emt 0:00:30]} Bb7 {[%emt 0:01:41]} 10. a3 {[%emt 0:01:25]} Rc8 {[%emt 0:01:28]} 11. f4 {[%emt 0:00:22]} Qc7 {[%emt 0:02:02]} 12. Rf3 {[%emt 0:01:09]} Ne7 {[%emt 0:09:30]} 13. Rh3 {[%emt 0:01:54]} Ne4 {[%emt 0:09:23]} 14. Qh5 {[%emt 0:03:03]} h6 {[%emt 0:01:02]} 15. dxc5 {[%emt 0:06:43]} bxc5 {[%emt 0:06:43]} 16. Ng4 {[%emt 0:00:46]} f6 {[%emt 0:11:08]} 17. Bxe4 {[%emt 0:10:39]} dxe4 {[%emt 0:00:18]} 18. Nxh6+ {[%emt 0:00:31]} gxh6 {[%emt 0:00:23]} 19. Qxh6 {[%emt 0:00:04]} Nf5 {[%emt 0:04:43]} 20. Qh8+ {[%emt 0:00:04]} Kf7 {[%emt 0:00:04]} 21. Rh7+ {[%emt 0:00:56]} Ke8 {[%emt 0:00:04]} 22. Rxc7 {[%emt 0:00:14]} Rxc7 {[%emt 0:03:54]} 23. Qh5+ {[%emt 0:00:34]} Kd8 {[%emt 0:00:25]} 24. Nc4 {[%emt 0:00:24]} Be7 {[%emt 0:00:57]} 25. Rd1+ {[%emt 0:06:46]} Kc8 {[%emt 0:03:30]} 26. g4 {[%emt 0:00:54]} Ng7 {[%emt 0:00:18]} 27. Qg6 {[%emt 0:00:07]} Ne8 {[%emt 0:00:20]} 28. f5 {[%emt 0:01:35]} exf5 {[%emt 0:01:32]} 29. Qxf5+ {[%emt 0:00:12]} Kb8 {[%emt 0:00:06]} 30. Bc3 {[%emt 0:01:16]} Ng7 {[%emt 0:00:53]} 31. Qg6 {[%emt 0:00:07]} Ne6 {[%emt 0:01:58]} 32. Ba5 {[%emt 0:00:33]} Rcc8 {[%emt 0:00:14]} 33. Rd7 {[%emt 0:00:08]} Bd8 {[%emt 0:01:26]} 34. Rxb7+ {[%emt 0:00:12]} Kxb7 {[%emt 0:00:08]} 35. Qxe4+ {[%emt 0:00:18]} Kb8 {[%emt 0:00:47]} 36. Qxe6 {[%emt 0:00:09]} Bxa5 {[%emt 0:00:30]} 37. Nxa5 {[%emt 0:00:06]} Rc7 {[%emt 0:01:31]} 38. Qd6 {[%emt 0:01:03]} Rg8 {[%emt 0:00:45]} 39. h3 {[%emt 0:00:44]} Rh8 {[%emt 0:00:36]} 40. Qxf6 {[%emt 0:01:05]} Rxh3 {[%emt 0:00:22]} 41. Qd8+ {[%emt 0:00:05]} Rc8 {[%emt 0:28:18]} 42. Nc6+ {[%emt 0:00:29]} Kb7 {[%emt 0:00:00]} 43. Qd7+ {[%emt 0:00:09]} Rc7 {[%emt 0:00:00]} 44. Na5+ {[%emt 0:00:25]} Kb8 {[%emt 0:00:00]} 45. Qb5+ {[%emt 0:00:06]} Ka8 {[%emt 0:00:00]} 46. Qe8+ {[%emt 0:00:06]} Rc8 {[%emt 0:00:00]} 47. Qxc8# {[%emt 0:00:04]} 1-0

[Event "AUT-ch U16-Open 2025"]
[Site "Fuerstenfeld"]
[Date "2025.04.16"]
[Round "6.2"]
[White "Pausweg, Daniel"]
[Black "Stickler, Florentin"]
[Result "0-1"]
[Annotator "RC"]
[ECO "E01"]
[WhiteElo "2080"]
[BlackElo "2189"]
[PlyCount "84"]
[EventDate "2025.04.12"]
[EventType "swiss"]
[EventCountry "AUT"]
[SourceTitle "playchess.com"]
[Source "ChessBase"]
[SourceQuality "1"]
[TimeControl "5400+30"]

1. d4 {[%emt 0:00:03]} Nf6 {[%emt 0:00:06]} 2. c4 {[%emt 0:00:06]} e6 {[%emt 0:00:04]} 3. Nf3 {[%emt 0:00:06]} d5 {[%emt 0:00:08]} 4. g3 {[%emt 0:00:08]} dxc4 {[%emt 0:00:13]} 5. Qa4+ {[%emt 0:00:14]} Bd7 {[%emt 0:00:08]} 6. Qxc4 {[%emt 0:00:08]} Qc8 {[%emt 0:02:44]} 7. Bg2 {[%emt 0:04:04]} c5 {[%emt 0:00:52]} 8. O-O {[%emt 0:00:45]} b5 {[%emt 0:01:17]} 9. Qd3 {[%emt 0:01:30]} c4 {[%emt 0:02:27]} 10. Qc2 {[%emt 0:00:35]} Nc6 {[%emt 0:02:40]} 11. e4 {[%emt 0:02:19]} Be7 {[%emt 0:01:28]} 12. a3 {[%emt 0:02:58]} O-O {[%emt 0:03:52]} 13. Bg5 {[%emt 0:02:07]} Qc7 {[%emt 0:11:02]} 14. Nc3 {[%emt 0:02:20]} b4 {[%emt 0:07:18]} 15. axb4 {[%emt 0:01:07]} Nxb4 {[%emt 0:03:11]} 16. Qe2 {[%emt 0:00:12]} Rfe8 {[%emt 0:05:20]} 17. Nd2 {[%emt 0:04:21]} Rac8 {[%emt 0:03:14]} 18. e5 {[%emt 0:01:55]} Nfd5 {[%emt 0:01:34]} 19. Nde4 {[%emt 0:00:39]} Nd3 {[%emt 0:04:12]} 20. Nxd5 {[%emt 0:04:04]} exd5 {[%emt 0:01:08]} 21. Bxe7 {[%emt 0:01:31]} Rxe7 {[%emt 0:00:40]} 22. Nc3 {[%emt 0:00:30]} Be6 {[%emt 0:03:08]} 23. Bxd5 {[%emt 0:05:40]} Qb6 {[%emt 0:00:34]} 24. Qe4 {[%emt 0:08:16]} Qxb2 {[%emt 0:01:15]} 25. Bxe6 {[%emt 0:00:49]} fxe6 {[%emt 0:00:51]} 26. Na4 {[%emt 0:01:18]} Qb4 {[%emt 0:01:42]} 27. Qe3 {[%emt 0:01:55]} Rb7 {[%emt 0:09:50]} 28. h4 {[%emt 0:02:47]} Rb5 {[%emt 0:00:44]} 29. Kg2 {[%emt 0:03:14]} Qe7 {[%emt 0:02:19]} 30. Rfb1 {[%emt 0:01:56]} Qb7+ {[%emt 0:00:13]} 31. d5 {[%emt 0:02:05]} Rxb1 {[%emt 0:00:25]} 32. Rxb1 {[%emt 0:00:18]} Qxb1 {[%emt 0:00:12]} 33. dxe6 {[%emt 0:00:30]} Qe1 {[%emt 0:00:36]} 34. Qxa7 {[%emt 0:00:40]} Qe4+ {[%emt 0:00:12]} 35. Kh2 {[%emt 0:00:18]} Nxe5 {[%emt 0:00:42]} 36. Nc5 {[%emt 0:01:10]} Ng4+ {[%emt 0:00:09]} 37. Kg1 {[%emt 0:00:20]} Qe1+ {[%emt 0:00:40]} 38. Kg2 {[%emt 0:00:10]} Qxf2+ {[%emt 0:00:20]} 39. Kh3 {[%emt 0:00:15]} Ne3 {[%emt 0:00:12]} 40. h5 {[%emt 0:00:41]} Qg2+ {[%emt 0:00:24]} 41. Kh4 {[%emt 0:00:21]} Qh2+ {[%emt 0:00:06]} 42. Kg5 {[%emt 0:00:12]} Qxg3# {[%emt 0:00:46]} 0-1

[Event "AUT-ch U16-Open 2025"]
[Site "Fuerstenfeld"]
[Date "2025.04.16"]
[Round "6.3"]
[White "Chen, Chicheng Leon"]
[Black "Nicolussi, Hieronymus"]
[Result "0-1"]
[Annotator "NA RC"]
[ECO "C03"]
[WhiteElo "2021"]
[BlackElo "1999"]
[PlyCount "44"]
[EventDate "2025.04.12"]
[EventType "swiss"]
[EventCountry "AUT"]
[SourceTitle "playchess.com"]
[Source "ChessBase"]
[SourceQuality "1"]
[TimeControl "5400+30"]

1. e4 {[%emt 0:00:10]} e6 {[%emt 0:00:06]} 2. d4 {[%emt 0:00:14]} d5 {[%emt 0:00:07]} 3. Nd2 {[%emt 0:00:30]} Be7 {[%emt 0:00:27]} 4. e5 {[%emt 0:05:06]} c5 {[%emt 0:00:53]} 5. c3 {[%emt 0:01:21]} Nc6 {[%emt 0:00:50]} 6. Ndf3 {[%emt 0:01:58]} Bd7 {[%emt 0:00:39]} 7. Bd3 {[%emt 0:02:55]} f6 {[%emt 0:01:31]} 8. exf6 {[%emt 0:03:24]} Nxf6 {[%emt 0:00:29]} 9. Ne2 {[%emt 0:00:11]} O-O {[%emt 0:01:45]} 10. O-O {[%emt 0:00:39]} Nh5 {[%emt 0:06:43]} 11. Qc2 {[%emt 0:04:38]} h6 {[%emt 0:05:46]} 12. Be3 {[%emt 0:08:04]} cxd4 {[%emt 0:09:20]} 13. Nexd4 {[%emt 0:03:46]} Bd6 {[%emt 0:02:27]} 14. Bg6 {[%emt 0:21:54]} Nxd4 {[%emt 0:07:41]} 15. Bxd4 {[%emt 0:02:26]} Rxf3 {[%emt 0:10:43]} 16. Bxh5 {[%emt 0:18:38]} Qh4 {[%emt 0:02:03]} 17. h3 {[%emt 0:00:22]} Qxh5 {[%emt 0:01:05]} 18. gxf3 {[%emt 0:00:11]} e5 {[%emt 0:01:17]} 19. Be3 {[%emt 0:01:24]} Bxh3 {[%emt 0:00:41]} 20. Rfd1 {[%emt 0:01:51]} e4 {[%emt 0:02:44]} 21. Rxd5 {[%emt 0:10:01]} Qxf3 {[%emt 0:00:57]} 22. Rg5 {[%emt 0:01:35]} hxg5 {[%emt 0:00:13]} 0-1

[Event "AUT-ch U16-Open 2025"]
[Site "Fuerstenfeld"]
[Date "2025.04.16"]
[Round "6.4"]
[White "Squasi, Ernesto"]
[Black "Onipko, Mark"]
[Result "0-1"]
[Annotator "NA RC"]
[ECO "B15"]
[WhiteElo "1904"]
[BlackElo "1979"]
[PlyCount "96"]
[EventDate "2025.04.12"]
[EventType "swiss"]
[EventCountry "AUT"]
[SourceTitle "playchess.com"]
[Source "ChessBase"]
[SourceQuality "1"]
[TimeControl "5400+30"]

1. e4 {[%emt 0:00:02]} c6 {[%emt 0:00:05]} 2. d4 {[%emt 0:00:25]} d5 {[%emt 0:00:06]} 3. Nc3 {[%emt 0:00:04]} e6 {[%emt 0:00:12]} 4. Nf3 {[%emt 0:09:26]} Bb4 {[%emt 0:05:22]} 5. e5 {[%emt 0:00:10]} c5 {[%emt 0:07:09]} 6. a3 {[%emt 0:03:55]} Ba5 {[%emt 0:01:13]} 7. b4 {[%emt 0:16:39]} cxb4 {[%emt 0:09:12]} 8. Nb5 {[%emt 0:00:33]} h6 {[%emt 0:00:43]} 9. Nd6+ {[%emt 0:01:06]} Kf8 {[%emt 0:00:26]} 10. Bd2 {[%emt 0:10:52]} Nc6 {[%emt 0:03:43]} 11. axb4 {[%emt 0:04:19]} Bc7 {[%emt 0:11:34]} 12. b5 {[%emt 0:11:40]} Bxd6 {[%emt 0:14:08]} 13. exd6 {[%emt 0:00:11]} Nb8 {[%emt 0:00:33]} 14. Bb4 {[%emt 0:05:25]} Nd7 {[%emt 0:04:51]} 15. Bd3 {[%emt 0:01:21]} Ngf6 {[%emt 0:02:50]} 16. O-O {[%emt 0:02:51]} g6 {[%emt 0:01:54]} 17. Ne5 {[%emt 0:02:11]} Kg7 {[%emt 0:00:28]} 18. c3 {[%emt 0:04:05]} Nb6 {[%emt 0:04:14]} 19. Qc2 {[%emt 0:02:02]} Nfd7 {[%emt 0:05:31]} 20. f4 {[%emt 0:02:29]} f5 {[%emt 0:00:29]} 21. Rf3 {[%emt 0:04:07]} Nxe5 {[%emt 0:02:27]} 22. dxe5 {[%emt 0:00:57]} Bd7 {[%emt 0:01:19]} 23. g4 {[%emt 0:05:15]} Qe8 {[%emt 0:02:21]} 24. Rg3 {[%emt 0:01:18]} Kh7 {[%emt 0:02:26]} 25. Qe2 {[%emt 0:01:36]} Nc4 {[%emt 0:04:59]} 26. Kf2 {[%emt 0:01:17]} Rg8 {[%emt 0:07:12]} 27. Rag1 {[%emt 0:00:19]} Qf7 {[%emt 0:01:45]} 28. g5 {[%emt 0:03:52]} h5 {[%emt 0:00:56]} 29. Bxc4 {[%emt 0:02:17]} dxc4 {[%emt 0:00:32]} 30. Qxc4 {[%emt 0:00:03]} Rgc8 {[%emt 0:01:27]} 31. Qd3 {[%emt 0:00:54]} b6 {[%emt 0:00:33]} 32. Ra1 {[%emt 0:00:41]} Qe8 {[%emt 0:01:07]} 33. c4 {[%emt 0:00:13]} a6 {[%emt 0:00:46]} 34. Rxa6 {[%emt 0:00:38]} Rxa6 {[%emt 0:00:00]} 35. bxa6 {[%emt 0:00:00]} Ra8 {[%emt 0:00:04]} 36. c5 {[%emt 0:03:39]} bxc5 {[%emt 0:01:06]} 37. Bxc5 {[%emt 0:00:26]} Qc8 {[%emt 0:00:27]} 38. Ba3 {[%emt 0:01:14]} Rxa6 {[%emt 0:00:26]} 39. Qb3 {[%emt 0:00:40]} Rc6 {[%emt 0:00:50]} 40. Re3 {[%emt 0:00:01]} Rc4 {[%emt 0:01:36]} 41. Rf3 {[%emt 0:01:09]} Rc2+ {[%emt 0:00:56]} 42. Kg3 {[%emt 0:00:18]} Qc6 {[%emt 0:02:49]} 43. Bb2 {[%emt 0:00:40]} Qc5 {[%emt 0:00:33]} 44. Bd4 {[%emt 0:00:24]} Qc6 {[%emt 0:00:37]} 45. Rf2 {[%emt 0:00:23]} Rc4 {[%emt 0:00:28]} 46. Rd2 {[%emt 0:00:30]} Rc1 {[%emt 0:00:32]} 47. Qb6 {[%emt 0:00:49]} Rc3+ {[%emt 0:00:29]} 48. Kf2 {[%emt 0:00:32]} Qf3+ {[%emt 0:00:10]} 0-1

[Event "AUT-ch U16-Open 2025"]
[Site "Fuerstenfeld"]
[Date "2025.04.16"]
[Round "6.5"]
[White "Prober, Raphael"]
[Black "Reichhuetter, Richard"]
[Result "0-1"]
[Annotator "NA RC"]
[ECO "B12"]
[WhiteElo "2131"]
[BlackElo "1916"]
[PlyCount "84"]
[EventDate "2025.04.12"]
[EventType "swiss"]
[EventCountry "AUT"]
[SourceTitle "playchess.com"]
[Source "ChessBase"]
[SourceQuality "1"]
[TimeControl "5400+30"]

1. e4 {[%emt 0:00:03]} c6 {[%emt 0:00:34]} 2. d4 {[%emt 0:00:06]} d5 {[%emt 0:00:00]} 3. e5 {[%emt 0:00:07]} Bf5 {[%emt 0:00:07]} 4. Be3 {[%emt 0:00:12]} Qb6 {[%emt 0:00:01]} 5. Qc1 {[%emt 0:00:13]} e6 {[%emt 0:00:03]} 6. a4 {[%emt 0:00:09]} Nd7 {[%emt 0:04:11]} 7. Nf3 {[%emt 0:01:15]} a6 {[%emt 0:02:50]} 8. a5 {[%emt 0:01:37]} Qc7 {[%emt 0:00:52]} 9. c3 {[%emt 0:05:07]} c5 {[%emt 0:05:40]} 10. dxc5 {[%emt 0:03:16]} Bxc5 {[%emt 0:01:30]} 11. Be2 {[%emt 1:23:55]} Ne7 {[%emt 0:00:15]} 12. O-O {[%emt 0:00:00]} Nxe5 {[%emt 0:23:52]} 13. Nxe5 {[%emt 0:00:00]} Qxe5 {[%emt 0:00:03]} 14. Bxc5 {[%emt 0:00:00]} Qxe2 {[%emt 0:00:02]} 15. Nd2 {[%emt 0:00:00]} Qb5 {[%emt 0:01:12]} 16. b4 {[%emt 0:00:00]} Qd7 {[%emt 0:00:08]} 17. Nf3 {[%emt 0:00:00]} O-O {[%emt 0:04:37]} 18. Qe3 {[%emt 0:00:00]} Rfe8 {[%emt 0:00:39]} 19. Ne5 {[%emt 0:00:00]} Qc7 {[%emt 0:00:19]} 20. Bb6 {[%emt 0:00:00]} Qd6 {[%emt 0:02:08]} 21. Bc5 {[%emt 0:00:00]} Qc7 {[%emt 0:00:02]} 22. Bb6 {[%emt 0:00:00]} Qc8 {[%emt 0:06:34]} 23. g4 {[%emt 0:00:00]} Bg6 {[%emt 0:00:04]} 24. h4 {[%emt 0:00:00]} f6 {[%emt 0:03:56]} 25. Nxg6 {[%emt 0:00:00]} Nxg6 {[%emt 0:00:55]} 26. h5 {[%emt 0:00:00]} Ne5 {[%emt 0:01:11]} 27. Qg3 {[%emt 0:00:00]} h6 {[%emt 0:08:45]} 28. Rad1 {[%emt 0:00:00]} Qc6 {[%emt 0:01:52]} 29. Bd4 {[%emt 0:00:00]} Nf7 {[%emt 0:01:05]} 30. f4 {[%emt 0:00:00]} e5 {[%emt 0:05:13]} 31. fxe5 {[%emt 0:00:00]} fxe5 {[%emt 0:00:28]} 32. Bc5 {[%emt 0:00:00]} Rad8 {[%emt 0:01:14]} 33. Rf5 {[%emt 0:00:00]} Ng5 {[%emt 0:00:26]} 34. Bb6 {[%emt 0:00:00]} Rd7 {[%emt 0:00:55]} 35. Rdf1 {[%emt 0:00:00]} e4 {[%emt 0:00:53]} 36. Qe3 {[%emt 0:00:00]} Qe6 {[%emt 0:01:12]} 37. Bc5 {[%emt 0:00:00]} Rf7 {[%emt 0:01:05]} 38. Kg2 {[%emt 0:00:00]} Nf3 {[%emt 0:00:44]} 39. R5xf3 {[%emt 0:00:00]} exf3+ {[%emt 0:00:20]} 40. Rxf3 {[%emt 0:00:00]} Qxg4+ {[%emt 0:00:33]} 41. Rg3 {[%emt 0:00:00]} Rxe3 {[%emt 0:01:46]} 42. Rxg4 {[%emt 0:00:00]} Rxc3 {[%emt 0:00:13]} 0-1

[Event "AUT-ch U16-Open 2025"]
[Site "Fuerstenfeld"]
[Date "2025.04.16"]
[Round "6.6"]
[White "Taizhanov, Aissultan"]
[Black "Martinovic, David"]
[Result "1/2-1/2"]
[Annotator "NA RC"]
[ECO "C45"]
[WhiteElo "1952"]
[BlackElo "1968"]
[PlyCount "91"]
[EventDate "2025.04.12"]
[EventType "swiss"]
[EventCountry "AUT"]
[SourceTitle "playchess.com"]
[Source "ChessBase"]
[SourceQuality "1"]
[TimeControl "5400+30"]

1. e4 {[%emt 0:00:06]} e5 {[%emt 0:00:05]} 2. Nf3 {[%emt 0:00:04]} Nc6 {[%emt 0:00:06]} 3. d4 {[%emt 0:00:04]} exd4 {[%emt 0:00:07]} 4. Nxd4 {[%emt 0:00:05]} Nf6 {[%emt 0:00:22]} 5. Nxc6 {[%emt 0:00:14]} bxc6 {[%emt 0:00:06]} 6. Nd2 {[%emt 0:02:13]} Bc5 {[%emt 0:08:29]} 7. Nb3 {[%emt 0:02:54]} Nxe4 {[%emt 0:06:30]} 8. Nxc5 {[%emt 0:00:55]} Nxc5 {[%emt 0:00:20]} 9. Be3 {[%emt 0:00:40]} Qe7 {[%emt 0:03:43]} 10. Qh5 {[%emt 0:02:01]} d5 {[%emt 0:02:33]} 11. O-O-O {[%emt 0:00:48]} Ne4 {[%emt 0:11:47]} 12. Bd3 {[%emt 0:04:36]} Rb8 {[%emt 0:06:45]} 13. Bxe4 {[%emt 0:15:45]} Qxe4 {[%emt 0:09:29]} 14. Bxa7 {[%emt 0:04:28]} O-O {[%emt 0:02:20]} 15. Bxb8 {[%emt 0:14:21]} Bf5 {[%emt 0:08:59]} 16. Rd2 {[%emt 0:01:39]} Rxb8 {[%emt 0:05:51]} 17. Qe2 {[%emt 0:03:13]} Qxg2 {[%emt 0:18:28]} 18. Re1 {[%emt 0:01:32]} Be4 {[%emt 0:00:33]} 19. f3 {[%emt 0:02:42]} Qxf3 {[%emt 0:00:49]} 20. Qxf3 {[%emt 0:00:06]} Bxf3 {[%emt 0:00:05]} 21. a4 {[%emt 0:01:50]} Be4 {[%emt 0:02:21]} 22. b3 {[%emt 0:02:40]} f5 {[%emt 0:00:33]} 23. Kb2 {[%emt 0:01:37]} Kf7 {[%emt 0:04:43]} 24. a5 {[%emt 0:02:02]} Ra8 {[%emt 0:00:45]} 25. Ra1 {[%emt 0:01:17]} Ra6 {[%emt 0:01:42]} 26. b4 {[%emt 0:05:30]} Ke7 {[%emt 0:00:41]} 27. h4 {[%emt 0:03:09]} g6 {[%emt 0:01:08]} 28. Kb3 {[%emt 0:04:28]} h6 {[%emt 0:03:35]} 29. c4 {[%emt 0:02:23]} Kd7 {[%emt 0:01:32]} 30. b5 {[%emt 0:03:04]} Ra7 {[%emt 0:00:27]} 31. Kb4 {[%emt 0:01:08]} g5 {[%emt 0:00:28]} 32. hxg5 {[%emt 0:03:35]} hxg5 {[%emt 0:00:00]} 33. Kc5 {[%emt 0:01:42]} cxb5 {[%emt 0:00:54]} 34. cxb5 {[%emt 0:00:07]} g4 {[%emt 0:00:36]} 35. Rh2 {[%emt 0:01:04]} g3 {[%emt 0:00:23]} 36. Rh7+ {[%emt 0:00:23]} Ke6 {[%emt 0:00:15]} 37. a6 {[%emt 0:05:37]} g2 {[%emt 0:00:20]} 38. Rh8 {[%emt 0:03:07]} f4 {[%emt 0:00:43]} 39. Kd4 {[%emt 0:01:35]} f3 {[%emt 0:00:34]} 40. Ke3 {[%emt 0:00:49]} Kd6 {[%emt 0:00:43]} 41. Rc1 {[%emt 0:00:44]} Ke5 {[%emt 0:00:36]} 42. Rh5+ {[%emt 0:00:33]} Kf6 {[%emt 0:00:19]} 43. Kf2 {[%emt 0:01:17]} Kg6 {[%emt 0:00:41]} 44. Re5 {[%emt 0:00:33]} Kf6 {[%emt 0:00:25]} 45. Rh5 {[%emt 0:00:07]} Kg6 {[%emt 0:00:36]} 46. Re5 {[%emt 0:00:05]} 1/2-1/2

[Event "AUT-ch U16-Open 2025"]
[Site "Fuerstenfeld"]
[Date "2025.04.16"]
[Round "6.7"]
[White "Fuertler, Oliver"]
[Black "Brown, Julian"]
[Result "1/2-1/2"]
[Annotator "NA RC"]
[ECO "A13"]
[WhiteElo "2008"]
[BlackElo "1873"]
[PlyCount "107"]
[EventDate "2025.04.12"]
[EventType "swiss"]
[EventCountry "AUT"]
[SourceTitle "playchess.com"]
[Source "ChessBase"]
[SourceQuality "1"]
[TimeControl "5400+30"]

1. d4 {[%emt 0:00:02]} Nf6 {[%emt 0:00:10]} 2. c4 {[%emt 0:00:06]} e6 {[%emt 0:00:02]} 3. Nf3 {[%emt 0:00:06]} b6 {[%emt 0:00:04]} 4. e3 {[%emt 0:02:41]} Be7 {[%emt 0:00:03]} 5. Be2 {[%emt 0:00:39]} O-O {[%emt 0:00:21]} 6. O-O {[%emt 0:00:32]} Bb7 {[%emt 0:00:05]} 7. Nbd2 {[%emt 0:00:59]} c5 {[%emt 0:00:33]} 8. b3 {[%emt 0:00:51]} d5 {[%emt 0:02:06]} 9. Bb2 {[%emt 0:00:53]} Nc6 {[%emt 0:00:46]} 10. Rc1 {[%emt 0:02:07]} cxd4 {[%emt 0:04:54]} 11. exd4 {[%emt 0:05:00]} Ne4 {[%emt 0:07:52]} 12. Bd3 {[%emt 0:03:45]} f5 {[%emt 0:01:06]} 13. cxd5 {[%emt 0:02:35]} exd5 {[%emt 0:00:52]} 14. Ne5 {[%emt 0:00:49]} Nxe5 {[%emt 0:03:55]} 15. dxe5 {[%emt 0:00:06]} Bc5 {[%emt 0:00:34]} 16. a3 {[%emt 0:02:24]} Qh4 {[%emt 1:15:07]} 17. Qe2 {[%emt 0:03:06]} a5 {[%emt 0:00:30]} 18. Nf3 {[%emt 0:08:02]} Qh5 {[%emt 0:00:00]} 19. Rc2 {[%emt 0:10:09]} Rae8 {[%emt 0:00:00]} 20. Nd4 {[%emt 0:04:19]} Qxe2 {[%emt 0:00:00]} 21. Rxe2 {[%emt 0:00:23]} f4 {[%emt 0:00:00]} 22. Rc1 {[%emt 0:06:55]} Ng5 {[%emt 0:00:00]} 23. Bb5 {[%emt 0:11:47]} Re7 {[%emt 0:00:00]} 24. f3 {[%emt 0:01:25]} Ne6 {[%emt 0:00:00]} 25. Rd1 {[%emt 0:01:08]} Rc8 {[%emt 0:00:00]} 26. Kf1 {[%emt 0:03:25]} Nxd4 {[%emt 0:00:00]} 27. Bxd4 {[%emt 0:00:06]} Bxd4 {[%emt 0:00:00]} 28. Rxd4 {[%emt 0:00:05]} Rc3 {[%emt 0:00:00]} 29. Rxf4 {[%emt 0:01:12]} Rxb3 {[%emt 0:00:00]} 30. a4 {[%emt 0:01:06]} Rc3 {[%emt 0:00:00]} 31. Rd4 {[%emt 0:01:46]} Rc5 {[%emt 0:00:00]} 32. f4 {[%emt 0:01:59]} Bc8 {[%emt 0:00:00]} 33. Red2 {[%emt 0:00:35]} Be6 {[%emt 0:00:00]} 34. Kf2 {[%emt 0:02:00]} Rec7 {[%emt 0:00:00]} 35. Bd3 {[%emt 0:01:33]} g6 {[%emt 0:00:00]} 36. h3 {[%emt 0:00:30]} Rc1 {[%emt 0:00:00]} 37. g4 {[%emt 0:01:33]} Rh1 {[%emt 0:00:00]} 38. Bf1 {[%emt 0:02:18]} Rc1 {[%emt 0:00:00]} 39. Bg2 {[%emt 0:02:37]} Rhg1 {[%emt 0:00:00]} 40. Bxd5 {[%emt 0:04:16]} Rcf1+ {[%emt 0:00:00]} 41. Ke2 {[%emt 0:00:15]} Bxd5 {[%emt 0:00:00]} 42. Rxd5 {[%emt 0:00:08]} Rxf4 {[%emt 0:00:00]} 43. R2d4 {[%emt 0:05:24]} Rgf1 {[%emt 0:00:00]} 44. Kd3 {[%emt 0:03:52]} R4f3+ {[%emt 0:00:00]} 45. Kc4 {[%emt 0:00:33]} Rc1+ {[%emt 0:00:00]} 46. Kb5 {[%emt 0:00:18]} Rb3+ {[%emt 0:00:00]} 47. Ka6 {[%emt 0:00:10]} Rc5 {[%emt 0:00:00]} 48. e6 {[%emt 0:01:41]} Rxd5 {[%emt 0:00:00]} 49. Rxd5 {[%emt 0:00:06]} Kf8 {[%emt 0:00:00]} 50. Rb5 {[%emt 0:01:31]} Rb4 {[%emt 0:00:00]} 51. Kxb6 {[%emt 0:02:30]} Rxa4 {[%emt 0:00:00]} 52. Kc6 {[%emt 0:00:24]} Rd4 {[%emt 0:00:00]} 53. Rxa5 {[%emt 0:00:39]} Ke7 {[%emt 0:00:00]} 54. Kc5 {[%emt 0:02:06]} 1/2-1/2

[Event "AUT-ch U16-Open 2025"]
[Site "Fuerstenfeld"]
[Date "2025.04.16"]
[Round "6.8"]
[White "Keller, Niklas"]
[Black "Haselsberger, Armin"]
[Result "1-0"]
[Annotator "NA RC"]
[ECO "B13"]
[WhiteElo "1888"]
[BlackElo "2004"]
[PlyCount "93"]
[EventDate "2025.04.12"]
[EventType "swiss"]
[EventCountry "AUT"]
[SourceTitle "playchess.com"]
[Source "ChessBase"]
[SourceQuality "1"]
[TimeControl "5400+30"]

1. e4 {[%emt 0:00:03]} c6 {[%emt 0:00:33]} 2. d4 {[%emt 0:00:05]} d5 {[%emt 0:00:31]} 3. exd5 {[%emt 0:00:07]} cxd5 {[%emt 0:00:19]} 4. Bd3 {[%emt 0:00:06]} Nc6 {[%emt 0:00:42]} 5. c3 {[%emt 0:00:11]} Qc7 {[%emt 0:00:34]} 6. Ne2 {[%emt 0:00:16]} Bg4 {[%emt 0:00:59]} 7. O-O {[%emt 0:00:27]} e6 {[%emt 0:00:44]} 8. Qe1 {[%emt 0:00:16]} Bd6 {[%emt 0:01:11]} 9. f3 {[%emt 0:00:17]} Bh5 {[%emt 0:00:43]} 10. Qh4 {[%emt 0:00:11]} Bg6 {[%emt 0:02:48]} 11. Bxg6 {[%emt 0:00:07]} fxg6 {[%emt 0:00:18]} 12. Nf4 {[%emt 0:02:05]} Bxf4 {[%emt 0:02:04]} 13. Bxf4 {[%emt 0:01:10]} Qd7 {[%emt 0:00:25]} 14. Nd2 {[%emt 0:04:11]} Nf6 {[%emt 0:01:05]} 15. Nb3 {[%emt 0:01:22]} b6 {[%emt 0:00:28]} 16. Rae1 {[%emt 0:00:30]} O-O {[%emt 0:01:05]} 17. h3 {[%emt 0:02:52]} a5 {[%emt 0:05:22]} 18. Nc1 {[%emt 0:02:50]} Rae8 {[%emt 0:10:33]} 19. Nd3 {[%emt 0:00:46]} Re7 {[%emt 0:00:34]} 20. Re2 {[%emt 0:01:33]} h6 {[%emt 0:09:33]} 21. Bh2 {[%emt 0:07:32]} Kh7 {[%emt 0:05:01]} 22. Qf4 {[%emt 0:02:52]} Rd8 {[%emt 0:03:17]} 23. Rfe1 {[%emt 0:02:13]} Qc8 {[%emt 0:07:08]} 24. Qd2 {[%emt 0:02:17]} Qd7 {[%emt 0:00:39]} 25. Nf4 {[%emt 0:00:49]} g5 {[%emt 0:03:09]} 26. Qc2+ {[%emt 0:01:49]} Kg8 {[%emt 0:00:12]} 27. Nxe6 {[%emt 0:02:05]} Rde8 {[%emt 0:00:11]} 28. Nc7 {[%emt 0:00:15]} Rxe2 {[%emt 0:00:17]} 29. Rxe2 {[%emt 0:00:03]} Rxe2 {[%emt 0:00:43]} 30. Qxe2 {[%emt 0:00:01]} Nd8 {[%emt 0:04:07]} 31. Qb5 {[%emt 0:01:43]} Qxb5 {[%emt 0:01:08]} 32. Nxb5 {[%emt 0:00:33]} Ne6 {[%emt 0:00:02]} 33. Nc7 {[%emt 0:00:46]} Nf4 {[%emt 0:00:09]} 34. Bxf4 {[%emt 0:00:43]} gxf4 {[%emt 0:00:02]} 35. a4 {[%emt 0:02:18]} Kf7 {[%emt 0:00:18]} 36. Kf2 {[%emt 0:01:35]} Ke7 {[%emt 0:00:14]} 37. Ke2 {[%emt 0:00:08]} Kd7 {[%emt 0:00:06]} 38. Nb5 {[%emt 0:00:32]} g5 {[%emt 0:01:55]} 39. Kd3 {[%emt 0:01:24]} h5 {[%emt 0:00:40]} 40. c4 {[%emt 0:00:24]} Kc6 {[%emt 0:00:41]} 41. Nc3 {[%emt 0:00:24]} Kd6 {[%emt 0:00:48]} 42. Nxd5 {[%emt 0:00:26]} Nxd5 {[%emt 0:00:02]} 43. cxd5 {[%emt 0:00:11]} Kxd5 {[%emt 0:00:09]} 44. b3 {[%emt 0:00:31]} h4 {[%emt 0:00:16]} 45. Kc3 {[%emt 0:00:09]} Kd6 {[%emt 0:00:20]} 46. Kc4 {[%emt 0:00:13]} Kc6 {[%emt 0:00:05]} 47. d5+ {[%emt 0:00:06]} 1-0